bitfinex-derivatives/quotes_ETHF0:USTF0_20251005
["timestamp","ask_amount","ask_price","bid_price","bid_amount"]
[1759641180265,0.6199,4571.2,4571.1,0.8365]
[1759641181164,0.00226285,4571.8,4571.2,0.3508]
[1759641181165,0.3727,4571.7,4571.2,0.3508]
[1759641181364,0.6199,4571.7,4571.6,0.8365]
[1759641181557,0.8587,4571.7,4571.6,0.8365]
[1759641182365,0.8587,4571.7,4571.6,1.62267147]
[1759641182658,0.00226285,4571.8,4571.7,0.3508]
[1759641182863,0.00226285,4571.8,4571.7,0.8365]
[1759641183170,0.00226285,4571.8,4571.7,1.4541]
[1759641185162,0.3727,4572.8,4572.1,0.39356]
[1759641185362,1.3185596,4572.7,4572.6,0.2374]
[1759641185560,1.7120796,4572.7,4572.6,0.2374]
[1759641186163,0.6377,4572.5,4572.4,1.02357147]
[1759641186355,1.0104,4572.5,4572.4,1.27441039]
[1759641186562,0.00244024,4572.7,4572.4,2.01875039]
[1759641186761,0.00244024,4572.7,4572.6,0.8365]
[1759641188162,0.62234024,4572.7,4572.6,0.8365]
[1759641188564,0.00244024,4572.7,4572.6,0.8365]
[1759641188760,0.86114024,4572.7,4572.6,1.23003]
[1759641188968,0.86114024,4572.7,4572.6,2.01620147]
[1759641189374,0.00244024,4572.7,4572.6,2.01620147]
[1759641189559,0.00244024,4572.7,4572.6,10.22400147]
[1759641190966,0.00244024,4572.7,4572.6,10.44800147]
[1759641191367,0.00244024,4572.7,4572.6,9.83047147]
[1759641191675,0.62234024,4572.7,4572.6,5.05447147]
[1759641192067,0.24964024,4572.7,4572.6,5.05447147]
[1759641192265,0.00244024,4572.7,4572.6,5.05447147]
[1759641192471,1.25466024,4572.7,4572.6,0.8365]
[1759641192672,0.24964024,4572.7,4572.6,0.8365]
[1759641192871,0.00244024,4572.7,4572.6,4.2683]
[1759641196970,0.022,4572.9,4572.7,0.73782]
[1759641197167,0.2334,4574.0,4573.9,0.88231]
[1759641197477,0.8536,4574.0,4573.9,2.01278147]
[1759641197673,3.3595,4574.5,4573.9,2.01278147]
[1759641197674,0.8536,4574.4,4574.3,0.2375]
[1759641197976,0.85567494,4574.4,4574.3,0.2375]
[1759641198182,1.31208885,4574.4,4574.0,0.3443]
[1759641198474,0.8536,4574.0,4573.9,1.02367147]
[1759641198672,0.9968,4574.0,4573.9,1.02367147]
[1759641199270,0.85567494,4574.4,4574.3,0.2375]
[1759641199472,0.3755,4574.3,4574.1,0.3934]
[1759641199772,0.8536,4574.3,4574.2,0.2375]
[1759641201570,0.8536,4574.3,4574.2,1.61937147]
[1759641204074,0.00207494,4574.4,4574.3,0.63088]
[1759641204280,0.00207494,4574.4,4574.3,2.13489775]
[1759641204672,0.61097494,4574.4,4573.9,3.2078]
[1759641204873,0.8536,4574.3,4574.2,0.2375]
[1759641205071,0.8536,4574.3,4574.2,0.5818]
[1759641205471,0.8536,4574.3,4574.2,1.0572]
[1759641205877,0.8536,4574.3,4574.2,0.8332]
[1759641206478,0.3755,4573.9,4573.7,0.2375]
[1759641206680,1.24702,4573.8,4573.7,0.2375]
[1759641207986,1.24702,4573.8,4573.7,0.4889]
[1759641208176,1.24702,4573.8,4573.7,0.2375]
[1759641208583,1.01475,4573.5,4573.4,4.57761775]
[1759641208784,1.39025,4573.5,4573.4,4.57761775]
[1759641209183,0.9968,4573.5,4573.4,4.60501775]
[1759641209384,0.8536,4573.5,4573.4,5.17331775]
[1759641210887,1.24705,4573.5,4573.4,5.17331775]
[1759641211281,0.8536,4573.5,4573.4,5.17331775]
[1759641211889,1.24705,4573.5,4573.4,5.17331775]
[1759641212088,1.39205,4573.5,4573.4,4.82901775]
[1759641212483,1.39205,4573.5,4573.4,4.57761775]
[1759641212686,0.84608,4573.2,4573.1,0.461]
[1759641212878,0.8049,4573.2,4573.1,1.0289]
[1759641213290,1.19837,4573.2,4573.1,1.0289]
[1759641213488,0.74579,4573.1,4572.9,0.3439]
[1759641213789,0.8049,4573.0,4572.9,0.8049]
[1759641213982,0.8049,4573.0,4572.9,1.0289]
[1759641214683,0.2267,4573.0,4572.9,1.0289]
[1759641215488,0.579,4573.0,4572.9,1.0289]
[1759641215686,0.8049,4573.0,4572.9,1.0289]
[1759641215993,0.8049,4573.0,4572.9,0.8049]
[1759641216196,0.9499,4573.0,4572.9,1.0289]
[1759641216588,0.9499,4573.0,4572.9,0.2252]
[1759641217088,0.145,4573.5,4573.0,0.3439]
[1759641217089,0.3523,4573.3,4573.0,0.3439]
[1759641217290,0.8049,4573.3,4573.2,0.2252]
[1759641217494,1.26369286,4573.3,4573.2,0.2252]
[1759641217686,1.26369286,4573.3,4573.2,0.8049]
[1759641218085,1.26369286,4573.3,4573.2,0.461]
[1759641218797,1.26369286,4573.3,4573.2,0.8049]
[1759641219194,1.26369286,4573.3,4573.2,2.10668775]
[1759641219195,0.45879286,4573.3,4573.2,2.10668775]
[1759641219392,3.2078,4573.7,4573.5,0.39345]
[1759641219592,1.03790965,4573.6,4573.5,1.19835]
[1759641219997,1.03790965,4573.6,4573.5,0.8049]
[1759641220302,1.19837,4573.3,4573.2,0.2252]
[1759641220496,1.19837,4573.3,4573.2,0.4492]
[1759641220895,1.19837,4573.3,4573.2,0.2252]
[1759641222290,3.2078,4573.7,4573.2,1.71321775]
[1759641222497,0.45900736,4573.6,4573.5,0.9437]
[1759641222795,0.91160736,4573.6,4573.5,0.2358]
[1759641222990,1.34343,4572.5,4572.0,1.16086161]
[1759641223198,1.34343,4572.5,4571.7,3.5517]
[1759641223199,2.02653363,4572.5,4571.7,3.5517]
[1759641223391,0.2267,4571.3,4571.2,3.7769]
[1759641223603,0.8049,4571.3,4571.2,3.2078]
[1759641223995,0.8049,4571.3,4571.2,3.433]
[1759641224501,1.19854,4571.3,4571.2,0.0022357]
[1759641226006,6.65702949,4571.3,4571.2,0.0022357]
[1759641226303,5.8049,4571.3,4571.2,0.0022357]
[1759641230106,0.8049,4571.3,4571.2,0.2486357]
[1759641231106,0.8049,4571.3,4571.2,0.8441357]
[1759641231405,3.2078,4571.7,4571.6,0.8419]
[1759641231908,4.0302,4571.7,4571.6,0.8419]
[1759641232907,4.0302,4571.7,4571.2,0.0022357]
[1759641233204,0.8224,4571.3,4571.2,0.0022357]
[1759641234511,5.8224,4571.3,4571.2,0.0022357]
[1759641236005,5.3409,4571.3,4570.1,3.60154]
[1759641236211,0.8224,4570.2,4570.1,3.84794]
[1759641237011,0.82511751,4570.2,4570.1,3.45642573]
[1759641237209,0.82511751,4570.2,4570.1,0.00222573]
[1759641238912,1.04911751,4570.2,4570.1,0.00222573]
[1759641240205,1.44284751,4570.2,4570.1,0.00222573]
[1759641240402,1.04911751,4570.2,4570.1,0.00222573]
[1759641241003,1.04911751,4570.2,4570.1,0.24862573]
[1759641241205,0.24751751,4570.2,4570.1,0.84412573]
[1759641241408,0.82511751,4570.2,4570.1,0.84412573]
[1759641241606,0.00271751,4570.2,4570.1,0.84412573]
[1759641241805,0.58841751,4570.2,4570.1,0.84412573]
[1759641242109,0.82511751,4570.2,4570.1,0.84412573]
[1759641243813,0.82511751,4570.2,4570.1,0.24862573]
[1759641244714,0.82511751,4570.2,4570.1,0.64236573]
[1759641245009,0.82511751,4570.2,4570.1,1.23786573]
[1759641246008,0.24751751,4570.2,4570.1,1.23786573]
[1759641246208,0.58841751,4570.2,4570.1,1.23786573]
[1759641246506,0.82511751,4570.2,4570.1,1.23786573]
[1759641247206,0.82511751,4570.2,4570.1,0.64236573]
[1759641247408,0.82511751,4570.2,4570.1,0.39596573]
[1759641247607,0.82511751,4570.2,4570.1,0.64236573]
[1759641248409,0.82511751,4570.2,4570.1,1.23786573]
[1759641248910,0.00271751,4570.2,4570.1,1.23786573]
[1759641250315,0.82511751,4570.2,4570.1,0.00222573]
[1759641250516,1.21884751,4570.2,4570.1,0.00222573]
[1759641252913,0.00271751,4570.2,4570.1,0.48572573]
[1759641253113,0.58841751,4570.2,4570.1,1.23786573]
[1759641253312,1.0502576,4570.2,4570.1,1.23786573]
[1759641253714,1.2869576,4570.2,4570.1,1.23786573]
[1759641253920,1.2869576,4570.2,4570.1,0.84412573]
[1759641254517,1.2869576,4570.2,4570.1,0.00222573]
[1759641255021,1.2869576,4570.2,4570.1,0.24862573]
[1759641255322,1.2869576,4570.2,4570.1,0.84412573]
[1759641256319,1.6806876,4570.2,4570.1,0.84412573]
[1759641256819,1.6806876,4570.2,4570.1,0.48572573]
[1759641257319,1.6806876,4570.2,4570.1,0.24862573]
[1759641258520,1.2869576,4570.2,4570.1,0.24862573]
[1759641259521,1.2869576,4570.2,4570.1,0.81022573]
[1759641260925,0.4645576,4570.2,4570.1,0.81022573]
[1759641262620,0.1433,4571.5,4570.1,0.81022573]
[1759641262621,0.2307,4571.1,4571.0,0.4646]
[1759641262820,0.5626,4571.1,4571.0,0.4646]
[1759641263019,0.7993,4571.1,4571.0,0.4646]
[1759641263226,0.7993,4571.1,4571.0,0.7974]
[1759641263621,0.80209046,4571.1,4571.0,0.7974]
[1759641263823,0.33469046,4571.1,4571.0,1.19106]
[1759641264024,0.95905046,4571.1,4571.0,0.7974]
[1759641264415,1.19575046,4571.1,4571.0,0.7974]
[1759641264617,0.4724,4571.0,4570.6,3.5406]
[1759641264824,0.7993,4570.7,4570.6,3.4436]
[1759641265222,0.7993,4570.7,4570.6,0.2358]
[1759641270027,0.7993,4570.7,4570.2,1.11917602]
[1759641270028,0.39372,4570.3,4570.2,1.11917602]
[1759641270234,1.19302,4570.3,4570.2,1.35497602]
[1759641270432,1.19302,4570.3,4570.2,1.58377602]
[1759641272626,0.7993,4570.3,4570.2,1.58377602]
[1759641276734,0.5626,4570.3,4570.2,1.58377602]
[1759641276939,0.39372,4570.4,4570.3,0.3466]
[1759641277126,0.2379,4570.6,4570.5,0.6347]
[1759641277326,0.3463,4570.8,4570.7,0.241]
[1759641277535,0.80380435,4570.8,4570.7,0.8084]
[1759641277736,0.69540435,4570.8,4570.7,0.8084]
[1759641278231,1.08908435,4570.8,4570.7,0.8084]
[1759641278437,0.45750435,4570.8,4570.7,0.8084]
[1759641278636,0.34909046,4571.1,4570.8,0.3466]
[1759641278836,0.4574948,4571.0,4570.9,1.59477602]
[1759641279033,1.0416948,4571.0,4570.9,1.59477602]
[1759641279231,0.4574948,4571.0,4570.9,1.98844602]
[1759641279434,0.00279046,4571.1,4571.0,0.7305]
[1759641279736,0.00279046,4571.1,4571.0,0.9513]
[1759641280139,0.81969046,4571.1,4571.0,0.8084]
[1759641280431,0.81969046,4571.1,4570.8,1.01037602]
[1759641280432,0.73998,4570.9,4570.8,0.241]
[1759641280632,0.3463,4570.8,4570.7,0.39368]
[1759641280842,0.8169,4570.6,4570.5,3.4488]
[1759641281037,0.8169,4570.6,4570.5,0.5876]
[1759641281338,0.8169,4570.6,4570.5,0.8084]
[1759641282933,0.3463,4570.4,4570.2,0.3466]
[1759641283139,0.8169,4570.3,4570.2,1.98850602]
[1759641283634,0.5842,4570.3,4570.2,1.98850602]
[1759641283832,0.5842,4570.6,4570.5,0.85551]
[1759641284038,0.5842,4570.6,4570.5,1.20211]
[1759641284233,0.5842,4570.6,4570.5,1.98848602]
[1759641284639,0.8169,4570.6,4570.5,1.98848602]
[1759641284934,0.8169,4570.6,4570.5,1.59477602]
[1759641287740,0.8169,4570.6,4570.5,1.02737602]
[1759641288142,0.8169,4570.6,4570.5,1.57497602]
[1759641290633,0.8169,4570.6,4570.5,0.241]
[1759641290838,0.8169,4570.6,4570.1,1.16308734]
[1759641290839,0.8281,4570.2,4570.1,0.22322573]
[1759641291250,0.8281,4570.2,4570.1,0.77082573]
[1759641293644,0.8281,4570.9,4570.8,0.7686]
[1759641293842,1.28574397,4570.9,4570.8,0.7686]
[1759641294142,0.45764397,4570.9,4570.8,1.94865602]
[1759641294447,0.00279046,4571.1,4571.0,1.29416]
[1759641294651,0.47099046,4571.1,4570.5,3.3397]
[1759641294941,1.05978117,4571.0,4570.9,1.22427602]
[1759641295144,1.41968117,4571.0,4570.9,1.22427602]
[1759641295539,1.41968117,4571.0,4570.9,0.7686]
[1759641295738,1.41968117,4571.0,4570.9,0.9926]
[1759641296142,1.04628117,4571.0,4570.9,1.77897602]
[1759641296343,0.45758117,4571.0,4570.9,1.77897602]
[1759641297045,0.68638117,4571.0,4570.9,1.77897602]
[1759641297836,0.45758117,4571.0,4570.9,1.77897602]
[1759641298145,0.00279046,4571.1,4571.0,1.29416]
[1759641298944,0.00279046,4571.1,4571.0,10.28833602]
[1759641299150,0.00279046,4571.1,4571.0,10.66282161]
[1759641299450,0.00279046,4571.1,4571.0,9.50196]
[1759641300149,0.00279046,4571.1,4571.0,11.44919763]
[1759641300350,1.22166,4572.3,4572.2,0.7686]
[1759641300647,1.28532889,4572.3,4572.2,1.77797602]
[1759641300949,0.45722889,4572.3,4572.2,1.77797602]
[1759641301248,4.42942,4572.7,4572.6,0.4379]
[1759641301448,4.88942823,4572.7,4572.6,0.7686]
[1759641301647,1.28810823,4572.7,4572.6,0.9916]
[1759641301847,1.28810823,4572.7,4572.6,1.77797602]
[1759641302845,1.28810823,4572.7,4572.6,1.22427602]
[1759641303047,0.46000823,4572.7,4572.6,0.223]
[1759641303353,0.00282449,4572.7,4572.6,0.6609]
[1759641303547,0.00282449,4572.7,4572.6,0.9916]
[1759641305153,0.00282449,4572.7,4572.6,5.9916]
[1759641305544,3.2078,4573.8,4572.6,5.9916]
[1759641305750,3.4366,4573.8,4573.7,1.55497602]
[1759641305941,3.7965,4573.8,4573.7,1.77797602]
[1759641306144,0.2288,4573.8,4573.7,2.17140602]
[1759641306450,0.5887,4574.1,4574.0,0.7686]
[1759641306647,0.59045381,4574.1,4574.0,1.77988286]
[1759641307154,0.00175381,4574.1,4574.0,1.12540684]
[1759641308657,0.82985381,4574.1,4574.0,0.00190684]
[1759641309054,5.82985381,4574.1,4574.0,0.00190684]
[1759641309645,0.4682,4573.3,4572.4,1.11707602]
[1759641309849,0.134,4573.5,4572.4,1.11707602]
[1759641309850,1.22163,4572.5,4572.4,1.00737602]
[1759641310049,0.9621,4572.5,4572.4,1.00737602]
[1759641310250,0.8281,4572.5,4572.4,0.4379]
[1759641310450,0.8281,4572.5,4572.0,0.1319]
[1759641310451,0.134,4572.0,4571.9,3.2078]
[1759641310757,0.9621,4572.0,4571.9,3.2096989]
[1759641310947,0.9621,4572.0,4571.9,0.0018989]
[1759641311349,5.9621,4572.0,4571.9,0.0018989]
[1759641311549,0.9621,4572.0,4571.9,0.0018989]
[1759641311755,5.9621,4572.0,4571.9,0.0018989]
[1759641312551,0.134,4571.0,4570.9,3.2078]
[1759641312756,0.9621,4571.0,4570.9,3.2078]
[1759641313145,0.3599,4571.4,4570.9,3.9764]
[1759641313349,0.2288,4571.4,4571.3,1.16224]
[1759641313555,0.8281,4571.9,4571.8,0.221]
[1759641313856,1.22169,4571.9,4571.4,0.3307]
[1759641314355,0.5887,4571.5,4571.4,0.5517]
[1759641314551,0.8281,4571.4,4571.3,0.22513637]
[1759641314753,0.8281,4571.4,4571.3,0.44613637]
[1759641315255,0.8281,4571.4,4571.3,0.83977637]
[1759641316445,0.8281,4571.4,4571.3,0.44613637]
[1759641317048,1.22173,4571.4,4571.3,0.00213637]
[1759641317650,6.22173,4571.4,4571.3,0.00213637]
[1759641319058,6.44473,4571.4,4571.3,0.00213637]
[1759641319461,6.0511,4571.4,4571.3,0.00213637]
[1759641319647,0.8281,4571.4,4571.3,0.55963637]
[1759641319850,0.8281,4571.4,4571.3,0.21753637]
[1759641320454,0.8281,4571.4,4571.3,1.17837637]
[1759641320651,0.52758,4572.0,4571.7,0.609]
[1759641320652,0.5569,4571.8,4571.7,0.609]
[1759641320853,0.778,4571.8,4571.7,0.2154]
[1759641321667,1.1716,4571.8,4571.7,0.2154]
[1759641321958,0.778,4571.4,4571.3,0.21753637]
[1759641322260,0.39361,4571.6,4570.4,3.6483]
[1759641322261,0.778,4570.5,4570.4,3.6483]
[1759641322561,0.778,4571.0,4570.9,1.17627]
[1759641322751,0.778,4571.0,4570.9,0.6635]
[1759641322948,0.9096,4571.0,4570.9,0.4384]
[1759641323150,0.91221997,4571.0,4570.9,0.44106518]
[1759641323358,0.78061997,4571.0,4570.9,0.83473518]
[1759641323554,0.78061997,4571.0,4570.9,1.40193518]
[1759641324062,0.00261997,4571.0,4570.9,4.60973518]
[1759641325358,0.55061997,4571.0,4570.9,4.60973518]
[1759641325554,0.00261997,4571.0,4570.9,4.60973518]
[1759641325753,0.00261997,4571.0,4570.9,4.38673518]
[1759641325952,0.00261997,4571.0,4570.9,4.60973518]
[1759641326659,0.00261997,4571.0,4570.9,9.38673518]
[1759641326963,0.00261997,4571.0,4570.9,9.60973518]
[1759641327365,0.00261997,4571.0,4570.9,9.38673518]
[1759641327565,0.55061997,4571.0,4570.9,4.60973518]
[1759641327865,0.22371997,4571.0,4570.9,4.60973518]
[1759641329167,0.00261997,4571.0,4570.9,4.60973518]
[1759641333262,0.22571997,4571.0,4570.9,3.99306518]
[1759641333473,0.77701997,4571.0,4570.9,4.38463518]
[1759641333673,0.77701997,4571.0,4570.9,4.61063518]
[1759641334464,0.77701997,4571.0,4570.9,4.38763518]
[1759641334664,0.77701997,4571.0,4570.9,4.61063518]
[1759641335063,0.54941997,4571.0,4570.9,4.61063518]
[1759641335367,0.00261997,4571.0,4570.9,4.61063518]
[1759641335969,0.00261997,4571.0,4570.9,4.38763518]
[1759641336160,0.00261997,4571.0,4570.9,4.61063518]
[1759641337667,0.00072107,4571.0,4570.9,7.69132516]
[1759641338665,0.00072107,4571.0,4570.9,4.38763518]
[1759641338965,0.54752107,4571.0,4570.9,3.99396518]
[1759641339267,0.22382107,4571.0,4570.9,4.21696518]
[1759641339468,0.22382107,4571.0,4570.9,3.99396518]
[1759641339863,0.00072107,4571.0,4570.9,4.21696518]
[1759641340059,0.91472107,4571.0,4570.9,3.21046518]
[1759641340266,0.91472107,4571.0,4570.9,0.22566518]
[1759641341466,0.77512107,4571.0,4570.9,0.22786518]
[1759641341771,0.00072107,4571.0,4570.9,1.40353518]
[1759641342364,0.59102107,4571.0,4570.9,0.00266518]
[1759641342565,0.22382107,4571.0,4570.9,1.00986518]
[1759641342868,0.00072107,4571.0,4570.9,1.00986518]
[1759641343072,0.00072107,4571.0,4570.9,4.21766518]
[1759641346076,0.54752107,4571.0,4570.9,3.99466518]
[1759641346268,0.77512107,4571.0,4570.9,4.21766518]
[1759641346575,0.00072107,4571.0,4570.9,3.99466518]
[1759641346767,0.00072107,4571.0,4570.9,4.21766518]
[1759641348473,0.00072107,4571.0,4570.9,3.99466518]
[1759641348872,0.90382107,4571.0,4570.9,3.21046518]
[1759641349174,6.36146138,4571.0,4570.9,0.00266518]
[1759641349965,5.90382107,4571.0,4570.9,0.00266518]
[1759641350167,6.36146578,4571.0,4570.9,0.00266518]
[1759641351073,6.36146578,4571.0,4570.9,0.39633518]
[1759641351776,6.36146578,4571.0,4570.9,0.00266518]
[1759641352173,6.36146578,4571.0,4570.9,0.21706518]
[1759641352371,6.36146578,4571.0,4570.9,0.44006518]
[1759641353174,6.36146578,4571.0,4570.9,0.21706518]
[1759641353475,1.23536578,4571.0,4570.9,1.01776518]
[1759641354282,0.68146578,4571.0,4570.9,1.01776518]
[1759641354681,0.22382107,4571.0,4570.9,1.01776518]
[1759641356078,0.22592107,4571.0,4570.9,1.01776518]
[1759641356974,0.55782107,4571.0,4570.9,1.01776518]
[1759641357176,0.90592107,4571.0,4570.9,0.00266518]
[1759641357377,1.3633471,4571.0,4570.9,0.00266518]
[1759641357577,1.7570071,4571.0,4570.9,0.00266518]
[1759641359186,1.2372471,4571.0,4570.9,0.84253518]
[1759641359385,1.3633471,4571.0,4570.9,0.67186518]
[1759641359587,1.3633471,4571.0,4570.9,0.44006518]
[1759641359988,1.3633471,4571.0,4570.9,0.22566518]
[1759641360183,1.3633471,4571.0,4570.9,0.44006518]
[1759641360387,1.3633471,4571.0,4570.9,0.22566518]
[1759641361895,1.3633471,4571.0,4570.9,0.44006518]
[1759641362491,1.7570071,4571.0,4570.9,0.44006518]
[1759641362690,1.7570071,4571.0,4570.9,0.00266518]
[1759641362691,6.7570071,4571.0,4570.9,0.00266518]
[1759641362890,0.3319,4569.8,4569.7,3.2078]
[1759641363096,0.7791,4569.8,4569.7,3.6452]
[1759641363790,0.7791,4569.8,4569.7,3.64675121]
[1759641364490,0.7791,4569.8,4569.7,3.87855121]
[1759641364793,0.7791,4569.8,4569.7,4.22445121]
[1759641364991,0.4472,4570.2,4570.1,0.2144]
[1759641365292,0.7791,4570.2,4570.1,0.6692]
[1759641365693,0.7791,4570.2,4570.1,0.223]
[1759641365891,0.3319,4570.1,4569.7,3.60312121]
[1759641366091,0.7791,4570.1,4570.0,0.2144]
[1759641366487,0.7791,4569.8,4569.7,0.56185121]
[1759641366796,0.7791,4569.8,4569.7,0.21595121]
[1759641366993,0.7791,4569.8,4569.7,0.67075121]
[1759641367192,0.7791,4569.8,4569.7,1.01665121]
[1759641367796,0.7791,4569.8,4569.7,0.79365121]
[1759641367991,0.7791,4569.8,4569.7,0.67075121]
[1759641368187,1.17287,4569.8,4569.7,0.00155121]
[1759641368386,6.17287,4569.8,4569.7,0.00155121]
[1759641369792,9.83763971,4569.8,4569.7,0.00155121]
[1759641371892,9.44386971,4569.8,4569.7,0.00155121]
[1759641372291,9.44386971,4569.8,4569.7,0.21595121]
[1759641372292,1.23606971,4569.8,4569.7,0.21595121]
[1759641372491,1.23606971,4569.8,4569.7,0.79365121]
[1759641372698,0.7791,4569.8,4569.7,0.79365121]
[1759641373294,0.5571,4569.8,4569.7,0.79365121]
[1759641374299,0.5571,4569.8,4569.7,1.01665121]
[1759641374494,0.2252,4569.8,4569.7,1.01665121]
[1759641374698,0.2252,4569.8,4569.7,4.22445121]
[1759641375195,0.2252,4569.8,4569.7,4.00145121]
[1759641375393,0.5571,4569.8,4569.7,4.22445121]
[1759641375794,0.5571,4569.8,4569.7,4.00145121]
[1759641375994,0.5571,4569.8,4569.7,4.22445121]
[1759641377202,0.5317,4570.2,4570.1,1.14684]
[1759641379105,3.2078,4570.3,4570.1,1.36984]
[1759641379296,3.2078,4570.3,4570.2,0.7531]
[1759641379904,3.4226,4570.3,4570.2,0.7531]
[1759641380203,3.7395,4570.3,4570.2,0.7531]
[1759641380798,0.4264,4569.8,4569.7,3.96245121]
[1759641381005,0.7433,4569.8,4569.7,0.75465121]
[1759641381802,0.5317,4569.8,4569.7,0.75465121]
[1759641382102,0.2148,4570.2,4570.1,1.14684]
[1759641382300,0.31762107,4571.0,4570.6,0.4189]
[1759641382491,0.00072107,4571.0,4570.9,1.14677]
[1759641382697,0.21552107,4571.0,4570.9,1.14677]
[1759641382903,0.53242107,4571.0,4570.9,1.14677]
[1759641383103,0.87042107,4571.0,4570.9,0.7531]
[1759641384105,1.26409107,4571.0,4570.7,0.223]
[1759641384299,0.4264,4570.5,4570.4,0.2107]
[1759641384505,0.39374,4570.2,4569.7,3.93732121]
[1759641384805,0.7433,4569.8,4569.7,3.62825121]
[1759641385196,0.7433,4569.8,4569.7,3.85125121]
[1759641385394,0.7433,4569.8,4569.7,4.18545121]
[1759641385595,0.7433,4570.2,4570.1,0.81264]
[1759641386601,0.7433,4570.2,4570.1,0.4189]
[1759641387195,0.7433,4570.2,4570.1,0.7531]
[1759641387803,0.7433,4570.2,4570.1,0.223]
[1759641388106,0.7433,4569.8,4569.7,3.20935121]
[1759641388305,0.7433,4569.8,4569.7,0.00155121]
[1759641390703,0.7433,4569.8,4569.7,0.21225121]
[1759641391009,0.7433,4569.8,4569.7,0.00155121]
[1759641392903,1.20053308,4569.8,4569.0,3.2078]
[1759641393104,0.3193,4568.6,4568.5,3.2078]
[1759641393407,0.39388,4568.5,4568.0,3.2078]
[1759641393607,0.7341,4568.2,4568.1,0.2261]
[1759641393908,0.7341,4568.1,4568.0,3.2078]
[1759641394108,0.7341,4568.1,4568.0,3.20946844]
[1759641394313,6.41394588,4568.1,4568.0,0.00166844]
[1759641396210,0.4148,4567.2,4567.1,3.2078]
[1759641396406,0.7341,4567.2,4567.1,3.2078]
[1759641397320,0.7366699,4567.2,4567.1,3.20980622]
[1759641397916,0.7366699,4567.2,4567.1,3.43590622]
[1759641398217,1.1306599,4567.2,4567.1,0.00200622]
[1759641399814,0.7366699,4567.2,4567.1,0.00200622]
[1759641404820,1.1306599,4567.2,4567.1,0.00200622]
[1759641405219,0.7366699,4567.2,4567.1,0.00200622]
[1759641407718,0.2115699,4567.2,4567.1,0.75850622]
[1759641407911,0.0025699,4567.2,4567.1,0.75850622]
[1759641408228,0.5673699,4567.2,4567.1,0.75850622]
[1759641408423,0.7850699,4567.2,4567.1,0.00200622]
[1759641408817,1.57275583,4567.2,4567.1,0.00200622]
[1759641409019,0.7850699,4567.2,4567.1,0.00200622]
[1759641409223,1.57275583,4567.2,4567.1,0.00200622]
[1759641409723,1.0080699,4567.2,4567.1,0.00200622]
[1759641410319,4.2158699,4567.2,4567.1,0.00200622]
[1759641412625,5.00355583,4567.2,4567.1,0.00200622]
[1759641413820,0.7825,4566.1,4566.0,3.9454]
[1759641414026,0.7825,4566.1,4566.0,4.33949]
[1759641414219,0.3381,4566.5,4566.0,3.9454]
[1759641414424,0.5648,4566.5,4566.4,1.13166]
[1759641414724,0.2267,4566.5,4566.4,1.13400671]
[1759641414927,0.7825,4566.5,4566.4,1.13400671]
[1759641415731,0.7878,4566.8,4566.7,1.13163]
[1759641415917,0.7878,4566.8,4566.7,0.81563]
[1759641415918,1.0055,4566.8,4566.7,0.81563]
[1759641416124,1.0055,4566.8,4566.7,1.13163]
[1759641417122,0.9073,4566.5,4566.4,0.00234671]
[1759641417316,0.9073,4566.5,4566.4,0.20954671]
[1759641418228,0.5648,4566.5,4566.4,0.73994671]
[1759641418424,0.9073,4566.5,4566.4,0.73994671]
[1759641418622,0.9073,4566.5,4566.4,0.39640671]
[1759641419119,0.9073,4566.5,4566.4,0.60360671]
[1759641420718,1.30135,4566.5,4566.4,0.00234671]
[1759641420930,4.1151,4566.5,4566.4,0.00234671]
[1759641421835,4.1151,4566.5,4566.4,0.20954671]
[1759641422025,4.1151,4566.5,4566.4,0.00234671]
[1759641422430,4.57228743,4566.5,4566.4,0.00234671]
[1759641423535,4.96633743,4566.5,4566.4,0.00234671]
[1759641423832,4.57228743,4566.5,4566.4,0.20954671]
[1759641424336,4.79528743,4566.5,4566.4,0.00234671]
[1759641427334,4.81118072,4566.5,4566.4,0.00234671]
[1759641427837,9.81118072,4566.5,4566.4,0.00234671]
[1759641429336,0.4444,4565.6,4565.5,3.2078]
[1759641429534,0.4444,4565.1,4565.0,4.02358]
[1759641429725,0.7825,4565.1,4565.0,4.33958]
[1759641430033,0.7825,4565.1,4565.0,3.80918]
[1759641430338,0.7825,4565.1,4565.0,4.34194641]
[1759641430726,0.7825,4565.1,4565.0,4.02594641]
[1759641430929,0.7825,4565.1,4565.0,3.21016641]
[1759641431138,4.68617359,4565.1,4565.0,0.00236641]
[1759641432934,0.39418,4565.0,4564.3,0.316]
[1759641433141,1.70445952,4564.9,4564.3,0.316]
[1759641433335,1.70445952,4564.9,4564.0,0.1306]
[1759641433532,6.70445952,4564.9,4564.0,0.1306]
[1759641433729,0.39422,4564.6,4564.0,0.1306]
[1759641433933,1.05008593,4564.1,4564.0,0.44823107]
[1759641434129,1.74595952,4564.1,4564.0,0.44823107]
[1759641434639,0.69449469,4564.1,4564.0,1.26410107]
[1759641434837,3.2078,4564.8,4564.7,0.39421]
[1759641435141,3.562,4564.8,4564.7,0.7376]
[1759641435635,4.56288593,4564.8,4564.5,0.1306]
[1759641435836,0.1312,4564.2,4564.1,0.60145]
[1759641436036,0.2624,4564.2,4564.1,0.81585]
[1759641436540,0.4854,4564.2,4564.1,0.7376]
[1759641436737,1.27308593,4564.2,4564.1,0.316]
[1759641437041,0.345,4564.1,4564.0,0.00163107]
[1759641437829,1.13268593,4564.1,4564.0,0.00163107]
[1759641438039,0.263,4563.2,4563.1,0.5366]
[1759641438244,0.263,4563.0,4562.9,0.55851613]
[1759641438437,0.1315,4563.0,4562.9,0.77471613]
[1759641438840,0.263,4563.0,4562.9,0.77471613]
[1759641439035,0.26548349,4563.0,4562.9,0.77651592]
[1759641439340,0.00248349,4563.0,4562.9,0.77651592]
[1759641440236,0.26548349,4563.0,4562.9,0.77651592]
[1759641440437,0.26548349,4563.0,4562.9,0.56031592]
[1759641440942,0.26548349,4563.0,4562.9,0.77651592]
[1759641441239,0.00248349,4563.0,4562.9,0.77651592]
[1759641441435,0.13398349,4563.0,4562.9,0.77651592]
[1759641441637,0.34768349,4563.0,4562.9,0.55281592]
[1759641441941,0.26548349,4563.0,4562.9,0.77651592]
[1759641442240,0.00248349,4563.0,4562.9,1.17088592]
[1759641443137,3.49e-06,4563.0,4562.9,1.95857185]